bitfinex/quotes_ETHUSD_20250725
["timestamp","ask_amount","ask_price","bid_price","bid_amount"]
[1753458330947,1.304,3620.2,3619.4,0.1384]
[1753458331119,0.5047,3620.1,3619.4,0.1384]
[1753458331324,0.9501,3620.1,3619.9,0.1384]
[1753458333644,0.002,3620.5,3619.8,0.1384]
[1753458333840,0.002,3620.5,3620.4,0.1384]
[1753458334041,0.002,3620.5,3620.4,5.02515547]
[1753458334257,0.002,3620.5,3620.4,5.60753102]
[1753458334463,0.002,3620.5,3620.4,5.0114]
[1753458334624,0.002,3620.5,3620.4,0.1384]
[1753458334820,0.9521,3620.5,3620.4,0.1384]
[1753458335033,0.55,3620.4,3620.3,0.1384]
[1753458335433,1.5001,3620.4,3620.3,0.1384]
[1753458336658,1.0547,3620.4,3620.3,0.1384]
[1753458337226,1.0547,3620.4,3620.3,0.05084883]
[1753458337630,1.5294,3620.4,3620.3,0.05084883]
[1753458338468,0.002,3620.5,3620.3,0.05084883]
[1753458339160,0.002,3620.5,3620.4,0.01375623]
[1753458339359,0.002,3620.5,3620.3,0.06460506]
[1753458339567,0.002,3620.5,3620.3,0.05084883]
[1753458339763,1.0031,3620.4,3620.3,0.05084883]
[1753458339948,0.55,3620.1,3620.0,0.1384]
[1753458340259,0.55,3620.1,3619.9,0.1384]
[1753458340770,1.0784,3620.0,3619.9,0.1384]
[1753458341070,1.0784,3620.0,3619.7,0.1384]
[1753458341071,0.55,3619.9,3619.7,0.1384]
[1753458341239,4.97015259,3619.9,3618.7,0.8289]
[1753458341441,0.55,3619.7,3619.6,0.1384]
[1753458341932,0.55,3619.9,3619.6,0.1384]
[1753458342267,0.55,3619.7,3619.2,0.01377035]
[1753458342450,0.55,3619.7,3618.7,1.52785037]
[1753458342651,0.55,3619.7,3619.6,0.1384]
[1753458342961,0.5284,3619.7,3619.6,0.1384]
[1753458343460,1.5531,3619.7,3619.6,0.1384]
[1753458345956,1.0784,3619.7,3619.6,0.1384]
[1753458346533,0.7537,3619.5,3618.5,0.4369]
[1753458346863,1.3037,3619.5,3619.4,0.1384]
[1753458347067,2.3068,3619.5,3619.4,0.1384]
[1753458347230,1.8321,3619.5,3619.4,0.1384]
[1753458347635,3.55,3619.4,3617.8,0.7981]
[1753458347969,0.55,3619.0,3617.8,0.7981]
[1753458348266,0.55,3618.8,3618.4,0.1384]
[1753458348971,0.55,3618.4,3617.5,0.001]
[1753458349174,0.8078,3618.3,3617.5,0.001]
[1753458349334,0.8078,3618.3,3617.6,0.1384]
[1753458349335,0.55,3618.0,3617.6,0.1384]
[1753458349536,0.55,3617.8,3617.5,0.001]
[1753458349742,0.55,3617.6,3617.5,0.001]
[1753458350259,0.55,3617.9,3617.5,0.1394]
[1753458350450,0.5284,3617.8,3617.5,0.1394]
[1753458350637,1.0031,3617.8,3617.5,0.1394]
[1753458350834,0.55,3617.6,3617.5,0.1394]
[1753458351251,1.5531,3617.6,3617.5,0.001]
[1753458351449,5.89686514,3617.6,3617.5,0.001]
[1753458351867,2.89686514,3617.6,3617.5,0.001]
[1753458352072,2.93141843,3617.6,3617.5,0.001]
[1753458352448,4.3295,3617.5,3616.8,0.001]
[1753458352662,0.6884,3616.9,3616.8,0.001]
[1753458352974,9.36345998,3616.9,3616.8,0.001]
[1753458353187,10.332,3616.9,3616.8,0.001]
[1753458353478,9.1905,3616.9,3616.8,0.001]
[1753458353679,9.7189,3616.9,3616.8,0.001]
[1753458353904,10.1936,3616.9,3616.8,0.001]
[1753458354244,11.2268,3616.9,3616.8,0.001]
[1753458354471,11.3652,3616.9,3616.8,0.001]
[1753458355140,6.0295,3616.9,3616.8,0.001]
[1753458355344,9.7179,3616.9,3616.8,0.001]
[1753458355576,9.1895,3616.9,3616.8,0.001]
[1753458355877,4.8579,3616.9,3616.8,0.001]
[1753458356046,8.41,3616.9,3616.8,0.001]
[1753458356377,0.7971,3617.3,3616.8,1.0718]
[1753458356557,0.55,3617.2,3616.8,0.1394]
[1753458356742,0.55,3617.2,3617.1,0.1384]
[1753458357381,3.0,3617.4,3617.1,0.1384]
[1753458357382,0.7971,3617.8,3617.1,0.1384]
[1753458357583,0.7871,3618.2,3617.7,0.1384]
[1753458357759,0.5284,3618.6,3617.7,0.4369]
[1753458357760,1.3155,3618.6,3617.7,0.4369]
[1753458357960,0.76045,3618.5,3618.2,0.1384]
[1753458358401,0.58454565,3618.4,3617.1,0.4369]
[1753458358583,0.55,3618.2,3617.8,0.1384]
[1753458358897,3.7871,3618.6,3617.2,0.01380891]
[1753458358898,1.43,3618.7,3617.9,0.7885]
[1753458359098,1.9584,3618.8,3617.7,0.4369]
[1753458359310,0.76411409,3618.7,3618.4,0.1384]
[1753458359489,1.29251409,3618.7,3618.4,0.1384]
[1753458359694,1.43,3618.8,3618.4,0.1384]
[1753458359908,1.43,3618.8,3618.6,0.1384]
[1753458360202,5.2192,3619.0,3618.6,0.1384]
[1753458360406,1.0031,3618.9,3617.7,0.4369]
[1753458360748,0.55,3618.6,3617.2,0.4369]
[1753458361009,3.6884,3618.4,3617.8,0.1384]
[1753458361216,5.1184,3618.4,3617.8,0.1384]
[1753458361783,1.5684,3618.4,3617.8,0.1384]
[1753458362110,0.55,3618.1,3616.3,0.9334]
[1753458362310,0.55,3617.7,3616.3,0.9334]
[1753458362474,3.55,3617.5,3616.3,0.001]
[1753458362667,0.55,3617.3,3616.3,0.001]
[1753458362862,0.55,3617.1,3616.3,0.01482305]
[1753458363062,0.55,3617.1,3616.3,0.001]
[1753458363310,1.58644,3617.1,3616.3,0.001]
[1753458364098,0.55,3617.1,3616.3,0.01482458]
[1753458364401,0.55,3617.1,3616.5,0.4955]
[1753458364599,0.55,3617.1,3616.5,0.01382382]
[1753458364798,0.55,3617.1,3616.3,0.4379]
[1753458365096,0.5284,3617.0,3616.3,0.001]
[1753458365270,6.1886,3616.9,3616.3,0.001]
[1753458365475,1.862,3616.9,3616.3,0.001]
[1753458365676,6.717,3616.9,3616.3,0.001]
[1753458365878,7.5351559,3616.9,3616.3,0.001]
[1753458366075,2.1517559,3616.9,3616.3,0.001]
[1753458366280,6.2231559,3616.9,3616.3,0.001]
[1753458366600,1.3681559,3616.9,3616.3,0.001]
[1753458366807,0.55,3616.9,3616.3,0.01482611]
[1753458367017,1.43,3617.2,3616.3,0.01482611]
[1753458367217,4.854,3617.1,3616.5,0.9687]
[1753458367497,4.854,3617.1,3616.3,0.01482611]
[1753458367498,1.43,3617.2,3616.9,1.7964]
[1753458367706,1.43,3618.0,3617.0,1.14844]
[1753458367907,1.43,3618.0,3617.0,0.9687]
[1753458368217,5.6819,3618.2,3617.1,0.98251617]
[1753458368218,1.43,3618.2,3617.1,0.98251617]
[1753458368376,0.8279,3618.6,3617.2,0.9687]
[1753458368377,1.43,3618.5,3617.2,0.9687]
[1753458368576,6.3175447,3618.5,3617.2,0.9687]
[1753458368775,3.76449447,3618.4,3617.3,2.76449285]
[1753458369110,3.76449447,3618.4,3617.2,1.14834]
[1753458369111,3.76449447,3618.4,3617.7,2.76412112]
[1753458369317,4.26399447,3618.4,3617.2,0.9687]
[1753458369553,0.55,3618.2,3617.3,2.76449285]
[1753458369806,0.55,3618.3,3617.2,0.98250815]
[1753458370010,1.59178132,3618.3,3617.8,2.76406546]
[1753458370217,1.59178132,3618.3,3617.2,1.42618429]
[1753458370363,0.55,3618.3,3617.6,0.7705]
[1753458370565,0.55,3618.3,3617.6,3.53472541]
[1753458370841,0.55,3618.3,3618.0,2.76395529]
[1753458371028,0.55,3618.3,3617.6,0.7705]
[1753458371182,0.58454661,3618.3,3617.8,2.76410716]
[1753458371525,0.55,3617.6,3617.2,2.76452228]
[1753458371684,0.55,3617.4,3616.8,0.001]
[1753458371872,0.55,3617.4,3617.3,2.76449285]
[1753458372228,1.43,3617.5,3617.4,2.76441643]
[1753458372571,1.43,3617.5,3617.4,3.73311643]
[1753458372897,1.43,3617.5,3617.3,0.1384]
[1753458372898,0.55,3617.4,3617.3,0.1384]
[1753458373210,0.55,3617.4,3616.9,0.1384]
[1753458373211,1.6599,3617.4,3616.9,0.1384]
[1753458373416,0.1384,3617.2,3616.8,0.001]
[1753458373879,1.98,3617.3,3616.9,0.1384]
[1753458374080,0.53405711,3617.2,3616.9,0.1384]
[1753458374283,0.55,3617.0,3616.8,0.001]
[1753458374603,2.21321571,3617.1,3616.8,0.001]
[1753458374604,0.55,3616.9,3616.8,0.001]
[1753458374911,2.4795,3616.9,3616.8,0.001]
[1753458377612,1.98,3616.9,3616.8,2.76587502]
[1753458377815,6.52689858,3616.9,3616.8,0.001]
[1753458378028,0.55,3615.4,3615.3,0.001]
[1753458378311,8.16194567,3615.4,3615.3,0.001]
[1753458378516,6.3675,3615.4,3615.3,0.001]
[1753458378940,5.8955,3615.4,3615.3,0.001]
[1753458379243,6.3675,3615.4,3615.3,0.001]
[1753458379415,5.395,3615.4,3615.3,0.001]
[1753458379826,0.55,3615.4,3615.3,2.76702218]
[1753458380030,0.7805,3616.4,3615.3,1.52301973]
[1753458380257,1.43,3616.3,3616.0,0.001]
[1753458380460,0.55,3616.1,3616.0,2.76643786]
[1753458380663,6.275,3616.3,3616.2,2.76533377]
[1753458380837,6.275,3616.3,3616.0,0.001]
[1753458381029,1.00606667,3616.2,3616.0,0.001]
[1753458381230,7.90858453,3616.1,3616.0,0.001]
[1753458381442,10.27551691,3616.1,3616.0,0.001]
[1753458381639,7.51010667,3616.1,3616.0,0.001]
[1753458381863,5.15810667,3616.1,3616.0,0.001]
[1753458382060,9.274,3616.1,3616.0,0.001]
[1753458382264,1.98,3616.1,3616.0,2.76648672]
[1753458382436,1.43,3616.1,3616.0,0.001]
[1753458382638,1.43,3616.1,3616.0,2.76648672]
[1753458383173,0.8305,3617.7,3616.3,2.7652573]
[1753458383354,0.8305,3618.1,3616.5,0.7558]
[1753458383533,0.002,3618.3,3617.9,2.76403336]
[1753458383732,0.002,3618.3,3617.7,2.76417231]
[1753458383932,0.002,3618.3,3617.3,0.7558]
[1753458384159,0.4846,3618.2,3617.4,2.76441643]
[1753458384363,0.4846,3618.2,3617.7,2.76414078]
[1753458384563,0.7873,3618.0,3617.4,2.76435885]
[1753458384767,0.55,3617.8,3617.2,2.76454656]
[1753458384964,0.55,3617.8,3616.9,3.21129736]
[1753458384965,0.55,3617.6,3616.9,3.21129736]
[1753458385172,0.55,3617.4,3616.9,2.76477543]
[1753458385532,0.55,3617.2,3616.7,2.76493608]
[1753458385731,0.55,3617.2,3616.4,2.76512263]
[1753458385732,0.55,3617.0,3616.4,2.76512263]
[1753458385965,0.55,3616.8,3616.1,0.9687]
[1753458386144,0.55,3616.8,3616.0,0.001]
[1753458386344,2.76510519,3616.5,3616.0,0.001]
[1753458386547,3.34975372,3616.4,3616.0,0.001]
[1753458386746,0.55,3616.2,3616.0,0.001]
[1753458386948,3.34997786,3616.1,3616.0,0.001]
[1753458387268,5.10877786,3616.1,3616.0,0.001]
[1753458387470,2.3088,3616.1,3616.0,0.001]
[1753458387670,5.61719024,3616.1,3616.0,0.001]
[1753458387882,10.59559024,3616.1,3616.0,0.001]
[1753458388195,5.39,3616.1,3616.0,0.001]
[1753458388665,4.84,3616.1,3616.0,2.76644951]
[1753458388867,0.55,3616.6,3616.0,0.9697]
[1753458389068,4.84,3616.8,3616.5,0.1384]
[1753458389288,3.0,3617.1,3616.7,2.76494417]
[1753458389492,3.0,3617.1,3616.2,0.4465]
[1753458389493,3.0,3616.9,3616.2,0.4465]
[1753458389635,4.1879,3617.0,3616.5,2.90346484]
[1753458389836,1.1879,3617.0,3616.5,0.1384]
[1753458390030,3.81436348,3616.9,3616.1,2.76541024]
[1753458390272,3.81436348,3616.9,3616.0,0.001]
[1753458390273,0.55,3616.3,3616.0,0.001]
[1753458390475,0.55,3616.1,3616.0,0.001]
[1753458390633,0.55,3616.1,3616.0,2.76648672]
[1753458390837,0.55,3616.6,3616.2,2.7652596]
[1753458391041,0.55,3616.6,3616.4,2.76516693]
[1753458391253,0.55,3616.7,3616.4,2.76516693]
[1753458391450,0.55,3616.7,3616.3,0.1384]
[1753458391649,0.55,3616.9,3616.4,2.76512342]
[1753458391975,0.55,3616.7,3616.1,2.76540446]
[1753458392271,0.1384,3616.6,3616.1,2.90380446]
[1753458392895,0.1384,3616.6,3616.1,0.1384]
[1753458393089,0.6884,3616.7,3616.2,2.76533377]
[1753458393295,0.6884,3616.7,3616.3,2.76524019]
[1753458393439,0.6884,3616.7,3616.1,0.1384]
[1753458393762,0.55,3616.3,3616.0,0.001]
[1753458393962,0.55,3616.1,3616.0,0.001]
[1753458394337,3.31527845,3616.3,3616.0,0.001]
[1753458394536,0.55,3616.1,3616.0,0.001]
[1753458394753,0.58456762,3616.1,3616.0,0.001]
[1753458394953,3.34997786,3616.1,3616.0,0.001]
[1753458395167,0.58456762,3616.1,3616.0,0.001]
[1753458395793,3.84947786,3616.1,3616.0,0.001]
[1753458395948,9.46017121,3616.1,3616.0,0.001]
[1753458396154,9.42560359,3616.1,3616.0,0.001]
[1753458396555,6.66019335,3616.1,3616.0,0.001]
[1753458396757,6.16069335,3616.1,3616.0,0.001]
[1753458397063,5.386,3616.1,3616.0,0.001]
[1753458397282,0.55,3616.1,3616.0,0.001]
[1753458397470,4.834,3616.6,3616.0,3.86356591]
[1753458397664,0.7912,3617.0,3616.0,1.0981]
[1753458397994,0.7912,3617.0,3616.5,0.1384]
[1753458397995,3.0,3616.8,3616.5,0.1384]
[1753458398166,1.0746,3616.7,3616.5,0.1384]
[1753458398383,3.0,3616.8,3616.5,0.1384]
[1753458398675,3.0,3616.8,3616.5,2.90348152]
[1753458398994,4.833,3617.0,3616.7,2.90333168]
[1753458399153,4.833,3617.0,3616.7,0.1384]
[1753458399566,0.55,3616.8,3616.3,0.1384]
[1753458399894,0.55,3616.9,3616.7,2.9033259]
[1753458400484,0.5246,3616.9,3616.0,0.8241]
[1753458400696,0.5246,3616.9,3616.6,2.76502576]
[1753458400913,0.5246,3616.9,3616.5,0.1384]
[1753458401388,0.5246,3616.9,3616.5,2.90350213]
[1753458401591,0.55,3617.0,3616.5,0.1384]
[1753458401889,0.55,3617.0,3616.7,2.7649393]
[1753458402265,0.55,3617.0,3616.5,0.1384]
[1753458402467,0.002,3616.8,3616.7,2.90335147]
[1753458402778,29.82450321,3619.3,3616.7,2.90335147]
[1753458402779,0.8217,3618.5,3616.9,0.1384]
[1753458402981,4.829,3618.5,3618.1,0.1384]
[1753458403182,0.5246,3618.2,3617.1,0.8075]
[1753458403382,0.1384,3618.2,3617.7,0.1384]
[1753458403695,0.002,3618.4,3618.2,2.7638052]
[1753458404257,0.002,3618.4,3618.0,0.1384]
[1753458404991,0.55,3618.2,3617.9,0.1384]
[1753458405295,0.55,3618.0,3617.8,0.1384]
[1753458406062,0.55,3617.8,3617.1,0.8075]
[1753458406383,0.55,3617.8,3617.1,2.76462281]
[1753458406594,0.55,3617.6,3617.3,0.1384]
[1753458406953,1.0746,3617.6,3617.3,0.1384]
[1753458407154,0.55,3617.7,3617.4,2.76436668]
[1753458407359,0.55,3617.7,3617.5,2.76434001]
[1753458407560,0.55,3617.7,3617.4,2.76439031]
[1753458407760,0.55,3617.7,3617.3,2.90286399]
[1753458408007,0.55,3617.7,3617.4,2.76439775]
[1753458408293,0.55,3617.8,3617.4,0.9587]
[1753458408454,0.55,3617.8,3617.6,0.1384]
[1753458408659,0.002,3618.3,3617.7,2.76418719]
[1753458408918,4.826,3618.3,3617.9,0.1384]
[1753458409094,4.826,3618.3,3617.4,2.76435116]
[1753458409095,0.99844756,3618.2,3617.4,2.76435116]
[1753458409298,0.55,3617.9,3617.5,2.9026854]
[1753458409660,0.55,3617.9,3617.5,0.1384]
[1753458409858,0.55,3617.7,3617.5,0.1384]
[1753458410105,3.31419399,3617.7,3617.3,0.1384]
[1753458410303,3.2888636,3617.6,3617.3,0.1384]
[1753458410617,0.6884,3617.5,3617.0,0.1384]
[1753458410768,0.55,3617.3,3617.0,0.1384]
[1753458411518,3.31482209,3616.9,3616.8,0.1384]
[1753458411801,3.31482209,3616.9,3616.8,2.90327502]
[1753458411802,0.55,3616.9,3616.8,2.90327502]
[1753458412273,0.55,3616.9,3616.8,0.1384]
[1753458413313,0.55,3617.0,3616.6,0.1384]
[1753458413466,3.31474049,3617.0,3616.6,0.1384]
[1753458413804,0.55,3616.6,3616.0,0.001]
[1753458413963,0.55,3616.4,3616.3,0.1384]
[1753458414161,0.55,3616.4,3616.1,0.1384]
[1753458414570,0.55,3616.4,3616.0,0.001]
[1753458414571,0.55,3616.1,3616.0,0.001]
[1753458414772,0.1384,3616.4,3616.0,0.001]
[1753458414974,0.1384,3616.6,3616.1,0.1384]
[1753458415163,4.819,3616.6,3616.2,0.9587]
[1753458415395,4.819,3616.6,3616.0,0.001]
[1753458415396,4.819,3616.6,3616.5,0.1384]
[1753458415586,0.55,3616.5,3616.0,0.001]
[1753458415765,0.55,3616.5,3616.2,0.1384]
[1753458416169,2.7653399,3616.2,3616.0,0.001]
[1753458416382,0.55,3616.2,3616.0,0.001]
[1753458416610,2.76541024,3616.1,3616.0,0.001]
[1753458416765,8.16797786,3616.1,3616.0,0.001]
[1753458416965,8.65801024,3616.1,3616.0,0.001]
[1753458417925,0.7832,3616.4,3616.0,0.001]
[1753458418218,5.367,3616.3,3616.0,0.001]
[1753458418421,3.84001024,3616.1,3616.0,0.001]
[1753458418621,3.87457786,3616.1,3616.0,0.001]
[1753458418806,0.03456762,3616.1,3616.0,0.001]
[1753458419007,2.76500712,3616.7,3616.0,0.9597]
[1753458419312,2.76504964,3616.6,3616.0,0.9597]
[1753458419619,2.76504964,3616.6,3616.0,1.60879118]
[1753458419825,0.8283,3616.9,3616.2,2.76533377]
[1753458420026,3.53795942,3617.5,3616.3,0.9725307]
[1753458420221,4.815,3617.5,3616.5,0.8296]
[1753458420423,0.7756,3618.3,3616.9,0.8296]
[1753458420626,0.7756,3618.3,3617.0,5.78751197]
[1753458420627,0.002,3618.3,3617.0,5.78751197]
[1753458420789,0.002,3618.3,3617.7,2.76417791]
[1753458420989,0.002,3618.3,3617.2,3.59415854]
[1753458421233,2.7638052,3618.2,3617.3,1.84020395]
[1753458421395,0.002,3618.3,3617.3,0.9587]
[1753458421595,0.002,3618.3,3617.4,0.97250739]
[1753458422122,0.002,3618.3,3617.6,2.7642636]
[1753458422283,0.002,3618.3,3617.5,0.9587]
[1753458422486,0.002,3618.3,3617.2,0.8296]
[1753458422690,0.002,3618.3,3617.7,2.76411421]
[1753458422886,0.002,3618.3,3617.6,2.76425043]
[1753458423131,2.80027983,3618.3,3617.5,3.72302004]
[1753458423301,2.80027983,3618.3,3617.6,2.7642477]
[1753458423501,0.03654661,3618.3,3617.5,3.72303593]
[1753458423704,2.76385554,3618.2,3617.6,0.42886767]
[1753458423946,0.03654661,3618.3,3617.7,0.8289]
[1753458424092,2.76578999,3618.3,3617.7,1.7876]
[1753458424433,0.002,3618.3,3617.7,4.55178712]
[1753458424637,0.002,3618.3,3617.7,4.55172698]
[1753458424851,0.002,3618.3,3617.8,0.49805947]
[1753458425346,2.76574066,3618.3,3617.8,0.49805947]
[1753458425848,0.03454756,3618.2,3617.3,1.39754074]
[1753458426018,0.002,3618.3,3617.4,0.9587]
[1753458426224,0.002,3618.3,3617.7,2.76413089]
[1753458426418,2.76382785,3618.2,3617.5,2.76432954]
[1753458426622,0.002,3618.3,3617.6,0.78850061]
[1753458426824,0.002,3618.3,3618.1,0.1384]
[1753458429043,0.002,3618.3,3618.2,2.7638052]
[1753458429245,0.002,3618.3,3618.2,0.9459]
[1753458429406,0.002,3618.3,3618.1,0.1384]
[1753458429941,0.002,3618.3,3618.2,3.72350342]
[1753458430242,0.002,3618.3,3618.2,4.37229016]
[1753458430446,0.002,3618.3,3618.2,3.86489016]
[1753458431325,0.002,3618.3,3618.2,0.4385]
[1753458431510,0.002,3618.3,3618.2,3.2023052]
[1753458431714,0.002,3618.3,3618.2,3.72350266]
[1753458431924,0.002,3618.3,3618.2,3.7097052]
[1753458432136,0.002,3618.3,3618.2,0.9459]
[1753458432364,0.002,3618.3,3618.1,0.1384]
[1753458432563,0.002,3618.3,3618.2,3.72350342]
[1753458432854,0.002,3618.3,3618.2,4.90979376]
[1753458433052,0.002,3618.3,3618.2,2.13219034]
[1753458433282,0.002,3618.3,3618.2,1.2386]
[1753458433580,0.002,3618.3,3618.2,0.8001]
[1753458433773,0.002,3618.3,3618.1,0.1384]
[1753458434150,0.002,3618.3,3618.2,2.7638052]
[1753458434488,0.002,3618.3,3618.2,3.7097052]
[1753458434650,0.002,3618.3,3618.2,4.38470709]
[1753458434983,0.002,3618.3,3618.2,8.18480709]
[1753458435303,0.002,3618.3,3618.2,12.97100963]
[1753458435654,0.002,3618.3,3618.2,8.17100963]
[1753458435862,0.002,3618.3,3618.2,12.97000963]
[1753458436670,1e-08,3618.4,3618.3,6.31372882]
[1753458436870,1e-08,3618.4,3618.3,8.4399501]
[1753458437172,1e-08,3618.4,3618.3,9.5242501]
[1753458438169,0.002,3619.1,3619.0,6.56329425]
[1753458438354,1e-08,3619.5,3619.4,2.76288887]
[1753458438686,1e-08,3619.5,3619.4,8.50266342]
[1753458438863,1e-08,3619.5,3619.4,13.84887759]
[1753458439485,1e-08,3619.8,3619.7,6.56405988]
[1753458439998,1e-08,3619.8,3619.7,7.64835988]
[1753458440587,1e-08,3619.8,3619.7,11.49545988]
[1753458441256,1e-08,3619.8,3619.7,0.1384]
[1753458441458,0.94750001,3619.8,3619.7,0.1384]
[1753458441658,0.7774,3619.7,3618.2,0.9459]
[1753458441860,2.76290668,3619.4,3619.1,0.1384]
[1753458442059,2.76304155,3619.2,3619.1,0.1384]
[1753458442390,2.76315006,3619.1,3619.0,0.1384]
[1753458442556,0.8322,3619.0,3617.7,0.777]
[1753458442757,2.76349969,3618.6,3618.2,0.1384]
[1753458442967,2.76365376,3618.4,3618.1,0.1384]
[1753458443190,0.9820447,3618.5,3618.1,0.1384]
[1753458443191,0.5189,3618.5,3618.1,0.1384]
[1753458443394,0.1384,3618.7,3618.1,0.1384]
[1753458443570,0.5189,3618.4,3618.1,0.1384]
[1753458444867,0.5189,3618.3,3618.1,0.1384]
[1753458445071,0.9475,3618.3,3618.1,0.1384]
[1753458445271,0.5189,3618.3,3618.1,0.1384]
[1753458445682,0.5189,3618.2,3618.1,0.1384]
[1753458446178,2.76363866,3618.5,3618.1,0.1384]
[1753458446379,2.76378277,3618.3,3618.1,0.1384]
[1753458446584,3.28257052,3618.4,3618.1,0.1384]
[1753458446781,0.5189,3618.3,3618.1,0.1384]
[1753458447175,0.5189,3618.3,3618.1,0.1394]
[1753458447497,0.002,3618.4,3618.1,0.1394]
[1753458447799,0.002,3618.4,3618.1,0.001]
[1753458448105,0.002,3618.4,3618.1,2.76486481]
[1753458448398,0.002,3618.4,3618.1,0.001]
[1753458448583,0.002,3618.4,3618.1,2.76487105]
[1753458448771,0.002,3618.4,3618.2,0.01379746]
[1753458449100,0.002,3618.4,3618.2,2.7637306]
[1753458449277,0.002,3618.4,3618.3,2.76372882]
[1753458449478,0.002,3618.4,3618.2,2.76378527]
[1753458449665,0.5189,3618.3,3618.1,0.001]
[1753458450597,0.002,3618.4,3618.3,3.58722882]
[1753458450807,0.002,3618.4,3618.3,4.54692437]
[1753458451094,0.002,3618.4,3618.3,0.83729555]
[1753458451295,0.002,3618.4,3618.3,2.76372882]
[1753458451503,0.002,3618.4,3618.2,2.76378123]
[1753458451997,0.002,3618.4,3618.3,2.76372882]
[1753458452204,0.002,3618.4,3618.1,0.551]
[1753458452383,0.002,3618.4,3618.2,2.76380122]
[1753458452577,0.002,3618.4,3618.1,2.76485696]
[1753458453265,0.002,3618.4,3618.3,2.76372882]
[1753458453466,0.002,3618.4,3618.1,2.76483583]
[1753458453665,0.002,3618.4,3618.1,0.001]
[1753458453883,0.002,3618.4,3618.1,2.7648732]
[1753458454104,0.002,3618.4,3618.3,2.76372882]
[1753458454308,0.002,3618.4,3618.3,3.31372882]
[1753458454465,0.002,3618.4,3618.3,8.09472882]
[1753458454674,0.002,3618.4,3618.3,12.04062882]
[1753458454890,0.002,3618.4,3618.3,12.87092882]
[1753458455098,0.002,3618.4,3618.3,13.64586483]
[1753458455607,0.002,3618.4,3618.3,8.86486483]
[1753458455965,0.002,3618.4,3618.3,7.91896483]
[1753458456201,0.002,3618.4,3618.3,12.69796483]
[1753458456698,0.002,3618.4,3618.3,13.62846483]
[1753458457502,0.002,3618.4,3618.3,12.69796483]
[1753458457685,0.002,3618.4,3618.3,12.83636483]
[1753458457893,0.002,3618.4,3618.3,13.76686483]
[1753458458801,0.002,3618.4,3618.3,13.76486483]
[1753458460278,0.002,3618.4,3618.3,13.76386483]
[1753458461114,0.002,3618.4,3618.3,8.98786483]
[1753458461414,0.002,3618.4,3618.3,12.83136483]
[1753458461634,0.002,3618.4,3618.3,7.28242882]
[1753458461778,0.002,3618.4,3618.3,11.22612882]
[1753458462186,0.002,3618.4,3618.3,0.1384]
[1753458462401,0.5033,3618.4,3618.3,0.1384]
[1753458463211,3.6962622,3618.4,3618.2,0.1384]
[1753458463410,3.19302882,3618.3,3618.2,0.1384]
[1753458463590,0.9306,3618.3,3618.2,0.1384]
[1753458463791,3.69432882,3618.3,3618.2,0.1384]
[1753458464395,2.7638052,3618.2,3618.1,0.1394]
[1753458464588,3.6944052,3618.2,3618.1,0.1394]
[1753458465227,0.5013,3618.2,3618.1,0.1394]
[1753458465382,0.002,3618.4,3618.2,2.76375358]
[1753458465583,0.002,3618.4,3618.3,0.1384]
[1753458465782,0.002,3618.4,3618.3,2.90212882]
[1753458466096,0.7924,3618.4,3617.7,3.0]
[1753458466285,3.55519858,3616.9,3616.8,0.001]
[1753458466617,3.55519858,3616.9,3616.0,0.001]
[1753458466618,5.76487502,3616.8,3616.0,0.001]
[1753458466782,7.36327502,3616.8,3616.0,0.001]
[1753458468327,12.46897847,3616.8,3616.0,0.001]
[1753458468630,12.13127502,3616.8,3616.0,0.001]
[1753458469241,0.7797,3616.8,3616.0,0.001]
[1753458469421,0.7954,3617.5,3616.0,0.56482879]
[1753458469628,0.95681,3617.5,3616.7,0.9315]
[1753458469903,3.7954,3617.5,3616.8,2.76487502]
[1753458470105,0.0345552,3617.4,3616.7,0.001]
[1753458470426,0.7954,3617.5,3616.7,0.01482153]
[1753458470590,4.767,3617.7,3617.4,2.76435546]
[1753458470921,3.0,3617.6,3617.4,2.76435546]
[1753458471506,3.0,3617.6,3616.7,0.799]
[1753458471507,0.85325425,3617.5,3616.7,0.001]
[1753458471728,0.03455425,3617.5,3617.4,2.76441643]
[1753458471923,0.002,3618.4,3617.4,0.9305]
[1753458472220,3.0,3618.2,3617.7,2.76412582]
[1753458472517,4.13270555,3618.2,3617.8,2.76408554]
[1753458472723,4.13270555,3618.2,3617.1,0.798]
[1753458472724,4.765,3618.2,3617.1,0.798]
[1753458472922,4.765,3618.2,3617.9,2.76403032]
[1753458473124,4.765,3618.2,3617.7,2.76417399]
[1753458473322,4.765,3618.2,3617.3,0.9305]
[1753458473522,5.32124,3618.2,3617.8,2.7640419]
[1753458473914,0.55624,3618.2,3617.3,0.9305]
[1753458474110,0.002,3618.4,3617.4,2.76441643]
[1753458474310,4.764,3618.2,3618.0,2.76389961]
[1753458474691,3.0,3618.3,3617.9,2.76401075]
[1753458475020,0.002,3618.4,3617.5,0.4691]
[1753458475223,4.764,3618.3,3617.9,2.76401904]
[1753458475430,4.764,3618.3,3617.7,2.76418719]
[1753458475625,4.764,3618.3,3617.9,2.7640336]
[1753458475927,0.002,3618.4,3617.2,2.76451542]